bitfinex-derivatives/quotes_ETHF0:USTF0_20250831
["timestamp","ask_amount","ask_price","bid_price","bid_amount"]
[1756629173638,1.08469424,4459.6,4459.5,3.46]
[1756629175841,1.08469424,4459.6,4459.5,3.6483]
[1756629176741,1.08469424,4459.6,4459.5,3.3961]
[1756629177540,1.08469424,4459.6,4459.5,3.6483]
[1756629178843,0.61679424,4459.6,4459.5,3.6483]
[1756629179142,1.08469424,4459.6,4459.5,3.6483]
[1756629180043,1.08469424,4459.6,4459.5,0.4405]
[1756629180630,0.61679424,4459.6,4459.5,0.4405]
[1756629180837,1.20308427,4460.6,4459.5,4.63954]
[1756629181139,0.4679,4460.8,4460.1,3.2078]
[1756629181440,0.4679,4460.8,4460.2,0.227]
[1756629181838,0.1888,4460.8,4460.1,3.2078]
[1756629182044,0.4679,4460.3,4460.2,0.227]
[1756629182233,0.1888,4460.3,4460.1,3.2078]
[1756629182437,0.4679,4460.2,4460.1,3.2078]
[1756629182632,0.4679,4460.2,4459.8,0.227]
[1756629182837,0.2791,4460.5,4459.8,0.227]
[1756629183038,0.2791,4460.5,4460.1,3.2078]
[1756629183338,0.2791,4460.7,4460.1,3.2078]
[1756629183531,0.227,4460.8,4460.1,3.2078]
[1756629183741,0.4679,4460.2,4460.1,3.2078]
[1756629184043,0.1888,4459.9,4459.6,3.2078]
[1756629184236,0.4679,4459.7,4459.6,3.4338]
[1756629184441,0.4679,4459.7,4459.6,3.2078]
[1756629184634,0.4679,4459.7,4459.6,3.4338]
[1756629185648,0.4679,4459.7,4459.6,3.2078]
[1756629186037,4.22423,4459.7,4458.4,3.2078]
[1756629186245,0.1888,4458.6,4458.5,0.226]
[1756629186441,0.4679,4458.6,4458.5,0.226]
[1756629188646,0.4955,4458.5,4458.4,3.2078]
[1756629188949,0.4955,4458.5,4458.4,3.4338]
[1756629189149,0.4955,4458.5,4458.4,3.2078]
[1756629192343,0.226,4459.2,4458.4,3.2078]
[1756629192652,0.2926,4459.1,4458.4,3.2078]
[1756629192848,0.61363876,4459.0,4458.4,3.2078]
[1756629193046,0.2926,4458.8,4458.4,3.2078]
[1756629193346,0.2926,4458.6,4458.4,3.2078]
[1756629193547,0.2926,4459.1,4458.4,3.2078]
[1756629193743,0.61354671,4459.0,4458.4,3.2078]
[1756629193943,0.2029,4458.7,4458.4,3.2078]
[1756629194142,0.22427001,4459.3,4458.4,3.2078]
[1756629194342,0.2926,4459.1,4458.4,3.2078]
[1756629194555,0.2926,4458.9,4458.4,3.2078]
[1756629194849,0.2926,4458.6,4458.4,3.2078]
[1756629195048,3.4348,4459.4,4458.4,3.2078]
[1756629195348,0.4955,4458.5,4458.4,3.4348]
[1756629196346,0.4955,4458.5,4458.4,3.2078]
[1756629196848,0.2926,4458.7,4458.4,3.2078]
[1756629197050,0.61498551,4458.6,4458.4,3.2078]
[1756629197250,0.2926,4458.7,4458.4,3.2078]
[1756629197449,0.90756665,4458.6,4458.4,3.2078]
[1756629197749,0.2029,4458.5,4458.4,3.2078]
[1756629197949,0.4955,4458.5,4458.4,3.2078]
[1756629201851,0.2926,4458.5,4458.4,3.2078]
[1756629202345,0.4955,4459.3,4458.4,3.43209]
[1756629202539,0.61474651,4459.2,4458.5,0.226]
[1756629202747,0.61474651,4459.1,4458.5,0.226]
[1756629202945,0.4955,4459.3,4458.5,0.45027]
[1756629203144,0.81764407,4459.2,4458.5,0.45027]
[1756629203354,0.61474407,4459.1,4458.5,0.45027]
[1756629203548,3.2078,4459.4,4458.5,0.45027]
[1756629203549,0.2926,4459.2,4458.5,0.45027]
[1756629203749,0.81767044,4459.1,4458.5,0.45027]
[1756629203953,0.2029,4459.1,4458.5,0.45027]
[1756629204648,0.2926,4459.2,4458.5,0.45027]
[1756629204847,0.61480259,4459.1,4458.5,0.226]
[1756629205050,0.4955,4459.2,4458.5,0.226]
[1756629205251,0.81770259,4459.1,4458.5,0.226]
[1756629205444,0.226,4459.8,4459.0,3.2078]
[1756629205445,0.2926,4459.8,4459.0,3.2078]
[1756629205645,0.2926,4459.6,4459.0,3.2078]
[1756629205951,0.2926,4459.3,4459.0,3.2078]
[1756629206155,0.4955,4459.1,4459.0,3.2078]
[1756629206350,0.4955,4459.1,4459.0,3.4338]
[1756629207255,0.2926,4459.5,4459.0,3.4338]
[1756629207550,0.2926,4459.3,4458.4,3.2078]
[1756629207755,0.4955,4458.6,4458.5,0.226]
[1756629208255,3.2078,4459.3,4458.4,3.2078]
[1756629208256,0.4955,4458.5,4458.4,3.2078]
[1756629208457,0.4955,4458.5,4458.4,3.4338]
[1756629209149,0.226,4459.5,4458.4,3.4338]
[1756629209356,0.2926,4459.3,4458.4,3.4338]
[1756629209549,0.2926,4459.1,4458.4,3.4338]
[1756629209859,0.81788321,4459.0,4458.4,3.4338]
[1756629210154,0.61498321,4458.9,4458.4,3.4338]
[1756629210355,0.2926,4459.1,4458.4,3.4338]
[1756629210654,0.2926,4459.6,4458.9,3.2078]
[1756629210854,0.61501142,4459.5,4459.4,3.2078]
[1756629211054,0.2926,4460.2,4459.4,3.4338]
[1756629211251,0.61495107,4460.1,4459.5,40.8]
[1756629211553,0.2926,4460.2,4459.6,0.226]
[1756629211755,0.90765612,4460.1,4459.6,0.226]
[1756629211952,0.2926,4460.1,4459.6,0.226]
[1756629212350,0.61514466,4460.0,4459.6,0.226]
[1756629212555,0.2926,4460.1,4459.6,0.226]
[1756629213257,0.2926,4460.1,4459.9,3.2078]
[1756629213455,3.2078,4460.9,4459.9,3.2078]
[1756629213456,0.2029,4460.0,4459.9,3.2078]
[1756629213657,0.2029,4459.3,4459.2,3.4338]
[1756629213853,0.4955,4459.3,4459.2,3.4338]
[1756629214157,0.4955,4459.3,4459.2,44.2338]
[1756629214450,1.11090069,4459.3,4459.2,44.2338]
[1756629214656,1.11090069,4459.3,4459.2,3.4338]
[1756629215250,1.11090069,4459.3,4459.2,3.2078]
[1756629215450,1.11090069,4459.3,4459.2,3.4338]
[1756629221963,1.11090069,4459.3,4459.2,3.2078]
[1756629222158,1.11090069,4459.3,4459.2,3.4338]
[1756629222362,1.11090069,4459.3,4459.2,3.2078]
[1756629229566,1.11090069,4459.3,4458.8,0.226]
[1756629229766,0.4833,4458.9,4458.8,0.226]
[1756629229965,0.2843,4458.9,4458.8,0.226]
[1756629230565,0.89970069,4458.9,4458.8,0.226]
[1756629231566,1.09870069,4458.9,4458.8,0.226]
[1756629235065,0.81440069,4458.9,4458.6,3.2078]
[1756629235268,1.09930726,4458.8,4458.7,0.226]
[1756629235567,0.81500726,4458.8,4458.6,3.2078]
[1756629235767,0.4833,4458.8,4458.7,0.226]
[1756629236160,1.09931343,4458.8,4458.7,0.226]
[1756629236364,0.4833,4458.8,4458.7,0.226]
[1756629236563,1.09931004,4458.8,4458.7,0.226]
[1756629236763,0.4833,4458.8,4458.7,0.226]
[1756629237066,0.2843,4458.8,4458.7,0.226]
[1756629237968,0.2843,4459.8,4458.7,0.226]
[1756629238167,0.61600078,4459.7,4458.7,0.226]
[1756629238367,0.4833,4459.5,4458.7,0.226]
[1756629238568,0.2843,4459.3,4458.7,0.226]
[1756629238765,0.2843,4459.1,4458.7,0.226]
[1756629238964,0.90030078,4459.0,4458.7,0.226]
[1756629239269,0.61600078,4458.9,4458.7,0.226]
[1756629239568,0.2843,4459.7,4458.7,0.226]
[1756629239868,0.2843,4459.5,4458.7,0.226]
[1756629240065,0.2843,4459.3,4458.7,0.226]
[1756629240370,0.4833,4459.1,4458.7,0.226]
[1756629240669,0.2843,4458.9,4458.7,0.226]
[1756629241571,1.20308427,4459.8,4458.7,0.226]
[1756629241766,0.2843,4459.7,4458.7,0.226]
[1756629241961,0.6162618,4459.6,4458.7,0.226]
[1756629242161,1.20308427,4459.8,4458.7,0.226]
[1756629242162,0.2843,4459.4,4458.7,0.226]
[1756629242371,0.2843,4459.2,4458.7,0.226]
[1756629242571,0.2843,4459.0,4458.7,0.226]
[1756629242871,0.2843,4458.8,4458.7,0.226]
[1756629243072,0.9005618,4458.8,4458.7,0.226]
[1756629244771,1.0995618,4458.8,4458.7,0.226]
[1756629244978,1.0995618,4458.8,4458.7,3.4338]
[1756629249887,1.0995618,4458.8,4458.7,3.2078]
[1756629250286,1.0995618,4458.8,4458.7,3.4338]
[1756629253489,0.9005618,4458.8,4458.7,3.4338]
[1756629253683,1.0893618,4458.8,4458.7,3.4338]
[1756629253885,0.6162618,4458.8,4458.7,3.4338]
[1756629254281,0.2923,4458.9,4458.7,3.4338]
[1756629254583,0.6162618,4458.8,4458.7,3.4338]
[1756629254789,0.6162618,4458.9,4458.7,3.4338]
[1756629254989,0.6162618,4458.8,4458.7,3.4338]
[1756629255291,0.2923,4458.8,4458.7,3.4338]
[1756629255487,0.9085618,4458.8,4458.7,3.4338]
[1756629255791,0.6162618,4458.8,4458.7,3.4338]
[1756629255993,0.6162618,4459.0,4458.7,3.4338]
[1756629256194,0.9085618,4458.9,4458.7,3.4338]
[1756629256387,0.6162618,4458.8,4458.7,3.4338]
[1756629257088,0.9085618,4458.8,4458.7,3.4338]
[1756629257287,1.0973618,4458.8,4458.7,3.4338]
[1756629259494,0.6162618,4458.8,4458.7,3.4338]
[1756629259794,0.4811,4458.8,4458.7,3.2078]
[1756629260095,0.4811,4458.8,4458.7,3.4338]
[1756629260286,1.0973618,4458.8,4458.7,3.4338]
[1756629261588,0.6162618,4458.8,4458.7,3.4338]
[1756629261892,0.9085618,4459.0,4458.7,3.4338]
[1756629262192,0.2923,4458.8,4458.7,3.4338]
[1756629262394,0.9085618,4458.8,4458.7,3.4338]
[1756629262597,0.6162618,4458.8,4458.7,3.4338]
[1756629262894,0.6162618,4459.0,4458.7,3.4338]
[1756629263093,0.6162618,4458.9,4458.7,3.4338]
[1756629263296,0.9085618,4458.9,4458.7,3.4338]
[1756629263502,0.6162618,4458.8,4458.7,3.4338]
[1756629263989,0.6162618,4459.1,4458.7,3.4338]
[1756629264188,0.6162618,4459.0,4458.7,3.4338]
[1756629264391,0.6162618,4458.9,4458.7,3.4338]
[1756629264696,0.2923,4459.7,4458.8,4.40364]
[1756629264895,0.1888,4460.1,4459.6,3.2078]
[1756629265094,0.80591026,4460.0,4459.7,0.226]
[1756629265394,1.09821026,4459.9,4459.7,0.226]
[1756629265591,1.09821026,4459.8,4459.7,0.226]
[1756629289507,0.4677,4459.7,4459.6,3.2078]
[1756629289801,1.08481026,4459.7,4459.6,3.4338]
[1756629293708,0.61711026,4459.7,4459.6,3.4338]
[1756629293902,0.89371026,4459.7,4459.6,3.4338]
[1756629294303,0.61711026,4459.7,4459.6,3.4338]
[1756629294508,0.2766,4460.5,4459.6,7.65803]
[1756629294809,3.2078,4461.1,4460.4,3.2078]
[1756629295003,0.2766,4460.9,4460.5,41.026]
[1756629295205,0.61589233,4460.8,4460.5,41.026]
[1756629295505,0.2766,4460.9,4460.5,41.026]
[1756629295705,0.4677,4460.6,4460.5,41.026]
[1756629296713,0.4677,4460.5,4460.4,3.2078]
[1756629297011,1.08261583,4460.5,4460.4,3.2078]
[1756629308920,1.08261583,4460.5,4460.4,3.4338]
[1756629311225,1.08261583,4460.5,4460.4,3.2078]
[1756629311525,1.08261583,4460.5,4460.4,3.4338]
[1756629313626,1.08261583,4460.5,4460.4,3.2078]
[1756629313827,0.1913,4460.0,4459.9,3.4338]
[1756629314017,0.4899,4460.0,4459.9,3.4338]
[1756629314429,1.10474189,4460.0,4459.9,3.4338]
[1756629315028,1.10474189,4460.0,4459.9,3.2078]
[1756629316224,0.1913,4459.6,4459.5,0.226]
[1756629316423,0.4899,4459.5,4459.4,3.2078]
[1756629316630,1.10474189,4459.5,4459.4,3.2078]
[1756629320234,0.4899,4459.0,4458.9,3.2078]
[1756629322831,0.2986,4460.0,4458.9,3.4338]
[1756629323032,0.4899,4459.8,4458.9,3.4338]
[1756629323232,0.2986,4459.6,4458.9,3.4338]
[1756629323432,0.61388684,4459.5,4458.9,3.4338]
[1756629323630,0.61388684,4459.4,4458.9,3.4338]
[1756629323830,0.61388684,4459.3,4458.9,3.4338]
[1756629324032,0.2986,4459.8,4458.9,3.4338]
[1756629324235,0.2986,4459.6,4458.9,3.4338]
[1756629324439,0.2986,4459.4,4458.9,3.4338]
[1756629324626,0.2986,4459.2,4458.9,3.4338]
[1756629324832,0.166,4459.9,4458.9,3.4338]
[1756629325032,0.2986,4459.7,4458.9,3.4338]
[1756629325229,0.61368698,4459.6,4458.9,3.4338]
[1756629325433,0.1913,4459.4,4458.9,3.4338]
[1756629325634,0.2986,4459.2,4458.9,3.4338]
[1756629325936,0.166,4459.9,4458.9,3.4338]
[1756629325937,0.2986,4459.8,4459.0,3.2078]
[1756629326136,0.2986,4459.6,4459.1,0.226]
[1756629326337,0.1913,4459.2,4459.0,3.2078]
[1756629326536,0.4899,4459.1,4459.0,3.2078]
[1756629328641,0.4899,4459.1,4459.0,3.4338]
[1756629339046,0.2986,4459.1,4459.0,3.4338]
[1756629339443,0.4938,4459.1,4459.0,3.4338]
[1756629339948,1.10815131,4459.1,4459.0,3.4338]
[1756629340246,1.1083278,4459.1,4459.0,3.2078]
[1756629344547,0.9131278,4459.1,4459.0,3.2078]
[1756629344741,0.6145278,4459.1,4459.0,3.2078]
[1756629347157,0.6145278,4459.1,4459.0,3.4338]
[1756629349659,0.6145278,4459.1,4459.0,3.65806]
[1756629349856,0.4931,4460.0,4459.0,3.4338]
[1756629350160,0.2979,4459.8,4459.5,3.2078]
[1756629350362,0.2979,4459.6,4459.5,3.2078]
[1756629350556,0.90526969,4459.6,4459.5,3.2078]
[1756629350756,0.60736969,4459.6,4459.5,3.2078]
[1756629350955,0.90526969,4459.6,4459.5,3.2078]
[1756629351759,1.10046969,4459.6,4459.5,3.2078]
[1756629361865,0.60736969,4459.6,4459.5,3.2078]
[1756629362267,0.2979,4460.4,4459.5,7.43204]
[1756629362474,0.60651392,4460.3,4459.6,0.45022]
[1756629362665,0.60651392,4460.2,4459.7,40.8]
[1756629362865,0.2979,4460.4,4459.8,0.226]
[1756629362866,0.60651392,4460.1,4459.8,0.226]
[1756629363171,0.60651392,4460.0,4459.8,0.226]
[1756629363370,0.4931,4460.4,4459.8,0.226]
[1756629363570,0.2979,4460.2,4459.8,0.226]
[1756629363772,0.60633962,4460.1,4459.8,0.226]
[1756629363975,0.60633962,4460.0,4459.8,0.226]
[1756629364271,0.2979,4460.2,4459.8,0.226]
[1756629364468,0.60620754,4460.1,4459.8,0.226]
[1756629364672,0.60620754,4460.0,4459.8,0.226]
[1756629364971,0.2979,4460.2,4459.8,0.226]
[1756629365171,0.90410754,4460.1,4459.8,0.226]
[1756629365474,0.60620754,4460.0,4459.8,0.226]
[1756629365667,0.2979,4460.1,4459.8,0.226]
[1756629365862,0.60610378,4460.0,4459.8,0.45022]
[1756629366069,0.4931,4460.7,4459.8,0.226]
[1756629366368,0.4931,4460.5,4460.4,3.2078]
[1756629366573,1.09900409,4460.5,4460.4,3.4338]
[1756629366973,0.2979,4461.4,4460.6,0.40348]
[1756629367166,0.2979,4461.8,4461.3,3.2078]
[1756629367372,0.90312553,4461.7,4461.4,0.226]
[1756629367574,0.60522553,4461.6,4461.4,0.226]
[1756629367764,0.3045,4462.2,4461.4,0.226]
[1756629367965,0.60521914,4462.1,4461.4,0.226]
[1756629368172,0.1938,4461.9,4461.4,0.226]
[1756629368366,0.3045,4461.7,4461.4,0.226]
[1756629368971,0.1938,4461.7,4461.4,0.226]
[1756629369171,0.3045,4461.5,4461.4,0.226]
[1756629370878,0.3045,4462.4,4461.4,0.226]
[1756629371073,0.3045,4462.2,4461.4,0.226]
[1756629371274,0.4983,4462.0,4461.4,0.226]
[1756629372973,0.1938,4461.5,4461.4,0.226]
[1756629373179,0.4983,4461.5,4461.4,0.226]
[1756629374877,0.4983,4461.5,4461.3,44.0078]
[1756629375075,0.3045,4461.4,4461.3,44.0078]
[1756629375281,0.3045,4461.4,4461.3,44.2338]
[1756629377283,0.4983,4461.4,4461.3,3.2078]
[1756629377484,0.4983,4461.4,4461.3,3.4338]
[1756629382488,0.3045,4462.2,4461.3,3.4338]
[1756629382689,0.4983,4462.0,4461.3,3.4338]
[1756629382886,0.22412,4462.2,4461.3,3.4338]
[1756629383095,0.3045,4462.0,4461.3,3.4338]
[1756629383291,3.2078,4462.3,4461.3,3.4338]
[1756629383492,0.3045,4462.1,4461.3,3.4338]
[1756629383695,3.43192,4462.3,4461.3,3.4338]
[1756629384000,0.3045,4462.0,4461.3,3.4338]
[1756629384299,3.43192,4462.3,4461.3,3.4338]
[1756629384491,0.3045,4462.1,4461.3,3.4338]
[1756629384697,3.43192,4462.3,4461.3,3.4338]
[1756629384698,0.3045,4462.0,4461.3,3.4338]
[1756629384996,0.4983,4462.0,4461.3,3.4338]
[1756629385192,0.4983,4461.9,4461.3,3.4338]
[1756629385399,0.3045,4461.7,4461.3,3.4338]
[1756629385600,3.43192,4462.3,4461.3,3.4338]
[1756629385800,0.60820963,4462.2,4461.3,3.4338]
[1756629386098,0.4983,4462.0,4461.3,3.4338]
[1756629386699,0.4983,4461.9,4461.3,3.4338]
[1756629387802,0.3045,4461.8,4461.3,3.4338]
[1756629388104,3.2078,4462.3,4461.3,3.4338]
[1756629388401,0.60854322,4462.2,4461.3,3.4338]
[1756629388594,0.3045,4462.0,4461.3,3.4338]
[1756629388794,3.2078,4462.3,4461.3,3.4338]
[1756629388795,0.4983,4461.9,4461.3,3.4338]
[1756629389098,0.3045,4463.2,4461.8,3.2078]
[1756629389299,0.3045,4463.0,4462.7,3.2078]
[1756629389496,3.2078,4463.3,4462.7,3.4338]
[1756629389695,0.3045,4463.1,4462.7,3.4338]
[1756629389899,3.2078,4463.3,4462.7,3.4338]
[1756629390096,0.3045,4463.1,4462.7,3.4338]
[1756629390299,3.2078,4463.3,4462.7,3.4338]
[1756629390497,0.3045,4463.1,4462.7,3.4338]
[1756629390697,0.1938,4463.1,4462.7,3.4338]
[1756629390900,0.1938,4463.2,4462.7,3.4338]
[1756629391305,3.2078,4463.3,4462.7,3.4338]
[1756629391603,0.3045,4463.0,4462.7,3.4338]
[1756629392099,0.1938,4463.0,4462.7,3.4338]
[1756629392301,0.3045,4463.2,4462.7,3.4338]
[1756629392603,0.3045,4463.0,4462.7,3.4338]
[1756629392795,0.3045,4462.9,4462.7,3.4338]
[1756629393000,0.3045,4463.2,4462.7,3.4338]
[1756629393202,0.3045,4463.0,4462.7,3.4338]
[1756629393401,0.3045,4462.8,4462.7,3.4338]
[1756629395400,0.91354556,4462.8,4462.7,3.4338]
[1756629399109,0.2902,4463.1,4462.7,3.4338]
[1756629399309,0.60895563,4463.0,4462.7,3.4338]
[1756629399503,0.2902,4463.1,4462.7,3.4338]
[1756629399704,0.60893302,4463.0,4462.7,3.4338]
[1756629399905,0.60894117,4462.9,4462.7,3.4338]
[1756629400208,3.4338,4463.8,4462.7,3.4338]
[1756629400506,0.2902,4463.6,4462.7,3.4338]
[1756629400705,0.2902,4463.4,4462.7,3.4338]
[1756629400904,0.2902,4463.2,4462.7,3.4338]
[1756629401099,0.2902,4463.0,4462.7,3.4338]
[1756629401310,0.2902,4462.8,4462.7,3.4338]
[1756629403111,3.2078,4463.8,4462.7,3.4338]
[1756629403312,0.83275484,4463.7,4462.7,3.4338]
[1756629403505,0.2902,4463.5,4462.7,3.4338]
[1756629403700,0.4874,4463.3,4462.7,3.4338]
[1756629403905,3.2078,4463.8,4462.7,3.4338]
[1756629403906,0.2902,4463.1,4462.7,3.4338]
[1756629404106,0.2902,4463.6,4462.7,3.4338]
[1756629404312,0.2902,4463.4,4462.7,3.4338]
[1756629404512,0.80588544,4463.3,4462.7,3.4338]
[1756629404713,0.60868544,4463.2,4462.7,3.4338]
[1756629404914,0.1972,4463.0,4462.7,3.4338]
[1756629405215,0.22405,4463.6,4462.7,3.4338]
[1756629405513,0.2902,4463.4,4462.7,3.4338]
[1756629405714,0.61086213,4463.3,4462.7,3.4338]
[1756629406015,0.2902,4463.0,4462.7,3.4338]
[1756629406215,0.2902,4462.9,4462.7,3.4338]
[1756629407211,0.1972,4462.8,4462.7,3.2078]
[1756629407415,0.4874,4462.8,4462.7,3.4338]
[1756629411414,5.09877013,4462.8,4462.7,3.2078]
[1756629415215,0.2902,4462.7,4462.2,3.2078]
[1756629415414,0.4874,4462.3,4462.2,3.2078]
[1756629415718,1.09877013,4462.3,4462.2,3.2078]
[1756629415914,0.61137013,4462.3,4462.2,3.2078]
[1756629416221,0.2902,4462.9,4462.2,3.2078]
[1756629416423,0.2902,4462.9,4462.8,3.2078]
[1756629416714,0.90244584,4462.9,4462.8,3.2078]
[1756629417119,1.09964584,4462.9,4462.8,3.2078]
[1756629417823,0.90244584,4462.9,4462.8,3.2078]
[1756629418811,1.09964584,4462.9,4462.8,3.2078]
[1756629422327,0.90244584,4462.9,4462.8,3.2078]
[1756629423427,1.09964584,4462.9,4462.8,3.2078]
[1756629423925,1.09964584,4462.9,4462.7,0.226]
[1756629424120,3.2078,4463.2,4462.7,0.226]
[1756629424121,0.80944584,4462.8,4462.7,0.226]
[1756629424327,1.09964584,4462.8,4462.7,0.226]
[1756629425331,0.1972,4462.5,4462.2,3.2078]
[1756629425627,0.4874,4462.4,4462.3,0.226]
[1756629427233,0.4874,4462.4,4462.2,3.2078]
[1756629427531,0.4874,4462.3,4462.2,3.2078]
[1756629427730,0.4874,4462.3,4462.2,3.4338]
[1756629429533,3.2078,4463.2,4462.2,3.4338]
[1756629429724,0.4878,4463.0,4462.2,3.83714]
[1756629429924,0.2845,4462.8,4462.2,3.83714]
[1756629430126,0.2845,4462.6,4462.2,3.83714]
[1756629430424,3.2078,4463.2,4462.2,3.83714]
[1756629430626,0.2845,4463.0,4462.2,3.83714]
[1756629430826,0.4878,4462.8,4462.2,3.4338]
[1756629431026,0.2845,4462.6,4462.2,3.4338]
[1756629431227,0.89734448,4462.5,4462.2,3.4338]
[1756629431426,0.2845,4462.5,4462.2,3.4338]
[1756629433433,0.2845,4462.5,4462.2,3.83714]
[1756629434130,3.2078,4463.2,4462.2,3.83714]
[1756629434333,0.2845,4463.0,4462.2,3.83714]
[1756629434530,0.2845,4462.8,4462.2,3.83714]
[1756629434723,0.61297778,4462.7,4462.2,3.4338]
[1756629434927,0.2845,4463.6,4463.0,0.40327]
[1756629435123,0.61376778,4463.5,4463.4,3.2078]
[1756629435329,0.61376778,4463.5,4463.4,3.4338]
[1756629435828,0.89826778,4463.5,4463.4,3.4338]
[1756629438230,0.2845,4463.5,4463.4,3.4338]
[1756629440638,3.2078,4464.4,4463.4,3.4338]
[1756629440837,0.61287716,4464.3,4463.4,3.4338]
[1756629441039,0.2845,4464.1,4463.4,3.4338]
[1756629441332,0.2845,4463.8,4463.4,3.4338]
[1756629441537,0.2845,4463.6,4463.4,3.4338]
[1756629445541,0.2845,4463.5,4463.4,3.4338]
[1756629448738,3.2078,4464.4,4463.4,3.4338]
[1756629448944,0.61257497,4464.3,4463.4,3.4338]
[1756629449243,3.2078,4464.4,4463.4,3.4338]
[1756629449244,0.2845,4464.0,4463.4,3.4338]
[1756629449446,0.2845,4464.0,4463.4,3.65782]
[1756629449742,3.2078,4464.4,4463.5,0.22403]
[1756629449945,1.10031002,4464.3,4463.6,0.226]
[1756629450146,0.4878,4464.1,4463.6,0.226]
[1756629450347,0.2033,4464.1,4463.6,0.226]
[1756629450541,0.2845,4464.0,4463.6,0.226]
[1756629450742,0.4878,4464.3,4463.6,0.226]
[1756629451048,0.2845,4464.0,4463.9,3.2078]
[1756629451252,0.2845,4464.0,4463.9,3.4338]
[1756629455641,3.2078,4464.9,4463.9,3.4338]
[1756629455847,0.2845,4464.7,4463.9,3.4338]
[1756629456048,0.2845,4464.5,4463.9,3.4338]
[1756629456247,0.2033,4464.3,4463.9,3.4338]
[1756629456450,0.2845,4464.1,4463.9,3.4338]
[1756629456650,0.2845,4464.7,4463.9,3.4338]
[1756629456948,0.2845,4464.3,4463.9,3.4338]
[1756629457452,0.2033,4464.1,4464.0,0.226]
[1756629457655,0.499,4464.1,4464.0,0.226]
[1756629458349,1.11151129,4464.1,4464.0,0.226]
[1756629459447,1.11151129,4464.1,4464.0,3.4338]
[1756629460346,1.11151129,4464.1,4463.8,0.226]
[1756629460554,0.487,4463.9,4463.8,0.226]
[1756629460755,1.09951129,4463.9,4463.8,0.226]
[1756629463159,0.1913,4463.7,4463.6,0.226]
[1756629463361,1.09951129,4463.7,4463.6,0.226]
[1756629465563,0.487,4463.6,4463.5,3.2078]
[1756629465863,1.09951129,4463.6,4463.5,3.4338]
[1756629481475,1.09951129,4463.6,4463.5,3.2078]
[1756629481668,1.09951129,4463.6,4463.5,3.4338]
[1756629484970,1.09951129,4463.6,4463.5,3.2078]
[1756629484971,0.61251129,4463.6,4463.5,3.2078]
[1756629485173,0.61251129,4463.8,4463.5,3.4338]
[1756629485373,0.61251129,4463.7,4463.5,3.4338]
[1756629485569,0.61251129,4463.6,4463.5,3.2078]
[1756629485779,0.2957,4464.5,4463.7,0.4032]
[1756629485975,0.90875301,4464.4,4464.2,3.2078]
[1756629486168,0.90875301,4464.4,4464.3,0.226]
[1756629486366,0.61305301,4464.4,4464.3,0.226]
[1756629487168,0.1913,4464.6,4464.3,0.226]
[1756629487472,0.2957,4464.5,4464.3,0.226]
[1756629487978,0.276,4465.0,4464.4,0.22399]
[1756629488174,0.276,4465.0,4464.9,3.2078]
[1756629488367,3.2078,4465.6,4464.9,3.4338]
[1756629488767,0.276,4465.5,4464.9,3.4338]
[1756629489476,3.2078,4465.6,4464.9,3.4338]
[1756629489678,0.276,4465.4,4464.9,3.4338]
[1756629489875,0.4746,4465.0,4464.9,3.4338]
[1756629490178,1.08787599,4465.0,4464.9,3.4338]
[1756629490376,0.4746,4465.0,4464.9,3.4338]
[1756629490674,0.276,4465.0,4464.9,3.4338]
[1756629490978,3.2078,4465.6,4464.9,3.4338]
[1756629491178,0.4746,4465.0,4464.9,3.4338]
[1756629492767,0.4746,4465.0,4464.9,3.2078]
[1756629492974,0.4746,4465.0,4464.9,3.4338]
[1756629494483,0.4746,4465.4,4464.9,3.4338]
[1756629494774,3.2078,4465.6,4464.9,3.4338]
[1756629494775,0.61118404,4465.3,4464.9,3.4338]
[1756629495083,0.276,4465.5,4464.9,3.4338]
[1756629495283,0.276,4465.5,4465.4,3.2078]
[1756629495581,0.276,4465.5,4465.4,3.4338]
[1756629495781,0.4746,4465.5,4465.4,3.4338]
[1756629496579,0.276,4466.0,4465.4,3.4338]
[1756629496882,0.1986,4465.7,4465.4,3.4338]
[1756629497083,0.22392,4466.1,4465.4,3.4338]
[1756629497283,0.276,4465.9,4465.4,3.4338]
[1756629497582,0.276,4465.5,4465.4,3.4338]
[1756629497783,0.4746,4465.5,4465.4,3.4338]
[1756629505191,0.276,4465.5,4465.4,3.4338]
[1756629507588,1.20933139,4466.6,4465.4,3.4338]
[1756629507793,0.276,4466.4,4465.4,3.4338]
[1756629508093,0.276,4466.2,4465.4,3.4338]
[1756629508386,0.276,4465.9,4465.4,3.4338]
[1756629508584,0.276,4465.7,4465.4,3.4338]
[1756629508783,0.88635372,4465.6,4465.4,3.4338]
[1756629508985,0.276,4466.5,4465.4,3.4338]
[1756629509184,0.276,4466.4,4465.4,3.4338]
[1756629509381,0.61047683,4466.3,4465.4,3.4338]
[1756629509689,0.1986,4466.1,4465.4,3.4338]
[1756629509885,0.276,4465.8,4465.4,3.4338]
[1756629510190,0.88647683,4465.7,4465.4,3.4338]
[1756629510385,0.61047683,4465.6,4465.4,3.4338]
[1756629511789,0.88647683,4465.6,4465.4,3.4338]
[1756629511992,0.276,4465.6,4465.4,3.4338]
[1756629512388,0.61109282,4465.5,4465.4,3.4338]
[1756629512594,0.88709282,4465.5,4465.4,3.4338]
[1756629512990,0.276,4465.5,4465.4,3.4338]
[1756629513192,0.4746,4465.5,4465.4,3.4338]
[1756629513388,0.4746,4465.5,4464.9,3.2078]